[Event "December 19 Late 2023"]
[Site "https://www.chess.com"]
[Date "2023.12.19"]
[Round "9"]
[White "Deac, Bogdan-Daniel"]
[Black "Nakamura, Hikaru"]
[Result "0-1"]
[Board "4"]
[TimeControl "180+1"]
[WhiteFideId "1226380"]
[BlackFideId "2016192"]
[WhiteElo "2641"]
[BlackElo "2874"]
[WhiteTeam "ROU"]
[BlackTeam "USA"]
[WhiteClock "0:00:08"]
[BlackClock "0:00:07"]

1. d4 {[%clk 0:03:00]}  Nf6 {[%clk 0:02:51]} 2. c4 {[%clk 0:03:00]}  e6 {[%clk 0:02:50]} 3. Nf3 {[%clk 0:03:00]}  Nc6 {[%clk 0:02:50]} 4. g3 {[%clk 0:02:58]}  g6 {[%clk 0:02:47]} 5. Bg2 {[%clk 0:02:56]}  d6 {[%clk 0:02:46]} 6. Nc3 {[%clk 0:02:55]}  Bg7 {[%clk 0:02:47]} 7. O-O {[%clk 0:02:55]}  O-O {[%clk 0:02:47]} 8. h3 {[%clk 0:02:55]}  Re8 {[%clk 0:02:32]} 9. Be3 {[%clk 0:02:36]}  a6 {[%clk 0:02:28]} 10. Rc1 {[%clk 0:02:33]}  Rb8 {[%clk 0:02:28]} 11. Qd2 {[%clk 0:02:26]}  b6 {[%clk 0:02:20]} 12. d5 {[%clk 0:02:16]}  Na5 {[%clk 0:02:07]} 13. b3 {[%clk 0:02:15]}  e5 {[%clk 0:02:07]} 14. Bg5 {[%clk 0:02:11]}  Bd7 {[%clk 0:02:03]} 15. e4 {[%clk 0:02:06]}  Qc8 {[%clk 0:01:59]} 16. Kh2 {[%clk 0:01:55]}  Nb7 {[%clk 0:01:59]} 17. b4 {[%clk 0:01:51]}  a5 {[%clk 0:01:58]} 18. a3 {[%clk 0:01:50]}  Kh8 {[%clk 0:01:57]} 19. Bh6 {[%clk 0:01:32]}  Bxh6 {[%clk 0:01:50]} 20. Qxh6 {[%clk 0:01:31]}  Ng8 {[%clk 0:01:51]} 21. Qh4 {[%clk 0:01:16]}  f6 {[%clk 0:01:49]} 22. Ne1 {[%clk 0:01:08]}  axb4 {[%clk 0:01:41]} 23. axb4 {[%clk 0:01:07]}  Ra8 {[%clk 0:01:41]} 24. Nc2 {[%clk 0:01:05]}  Nd8 {[%clk 0:01:41]} 25. f4 {[%clk 0:01:00]}  Nf7 {[%clk 0:01:36]} 26. Rf2 {[%clk 0:00:46]}  Rf8 {[%clk 0:01:07]} 27. Rcf1 {[%clk 0:00:33]}  exf4 {[%clk 0:01:02]} 28. gxf4 {[%clk 0:00:33]}  Qe8 {[%clk 0:00:57]} 29. Qg3 {[%clk 0:00:26]}  g5 {[%clk 0:00:54]} 30. fxg5 {[%clk 0:00:13]}  Nxg5 {[%clk 0:00:55]} 31. c5 {[%clk 0:00:12]}  bxc5 {[%clk 0:00:48]} 32. bxc5 {[%clk 0:00:13]}  Qe7 {[%clk 0:00:45]} 33. cxd6 {[%clk 0:00:04]}  cxd6 {[%clk 0:00:46]} 34. Nd4 {[%clk 0:00:03]}  Ra3 {[%clk 0:00:40]} 35. Nc2 {[%clk 0:00:03]}  Raa8 {[%clk 0:00:37]} 36. Nd4 {[%clk 0:00:04]}  Rfc8 {[%clk 0:00:20]} 37. Nc6 {[%clk 0:00:03]}  Bxc6 {[%clk 0:00:14]} 38. dxc6 {[%clk 0:00:03]}  Qe5 {[%clk 0:00:14]} 39. Nd5 {[%clk 0:00:03]}  Rxc6 {[%clk 0:00:13]} 40. Nxf6 {[%clk 0:00:02]}  Nf7 {[%clk 0:00:07]} 41. Qxe5 {[%clk 0:00:02]}  Nxe5 {[%clk 0:00:08]} 42. Nd5 {[%clk 0:00:02]}  Ra7 {[%clk 0:00:06]} 43. Rb2 {[%clk 0:00:02]}  Rg7 {[%clk 0:00:06]} 44. Rd1 {[%clk 0:00:01]}  Rc8 {[%clk 0:00:05]} 45. Re2 {[%clk 0:00:01]}  Rf8 {[%clk 0:00:05]} 46. Ne3 {[%clk 0:00:01]}  Rg6 {[%clk 0:00:03]} 47. Nf5 {[%clk 0:00:01]}  Rff6 {[%clk 0:00:03]} 48. Red2 {[%clk 0:00:02]}  Nf7 {[%clk 0:00:04]} 49. Rd5 {[%clk 0:00:02]}  Ngh6 {[%clk 0:00:05]} 50. Nxh6 {[%clk 0:00:02]}  Rxh6 {[%clk 0:00:05]} 51. R5d2 {[%clk 0:00:02]}  Rhg6 {[%clk 0:00:06]} 52. Re2 {[%clk 0:00:03]}  Ne5 {[%clk 0:00:07]} 53. Red2 {[%clk 0:00:03]}  Kg7 {[%clk 0:00:07]} 54. Re2 {[%clk 0:00:03]}  Kf7 {[%clk 0:00:07]} 55. Rb1 {[%clk 0:00:04]}  Rg5 {[%clk 0:00:06]} 56. Rc2 {[%clk 0:00:04]}  Kg6 {[%clk 0:00:07]} 57. Rb7 {[%clk 0:00:05]}  h6 {[%clk 0:00:06]} 58. Rd2 {[%clk 0:00:04]}  Kh5 {[%clk 0:00:06]} 59. Rb3 {[%clk 0:00:04]}  Kh4 {[%clk 0:00:07]} 60. Re2 {[%clk 0:00:04]}  Rgg6 {[%clk 0:00:07]} 61. Rd2 {[%clk 0:00:04]}  Rf4 {[%clk 0:00:07]} 62. Re2 {[%clk 0:00:04]}  Rf7 {[%clk 0:00:04]} 63. Rc3 {[%clk 0:00:05]}  Rfg7 {[%clk 0:00:04]} 64. Rd2 {[%clk 0:00:05]}  Rg5 {[%clk 0:00:04]} 65. Re2 {[%clk 0:00:05]}  R7g6 {[%clk 0:00:04]} 66. Rce3 {[%clk 0:00:05]}  Rg3 {[%clk 0:00:04]} 67. Rxg3 {[%clk 0:00:05]}  Rxg3 {[%clk 0:00:05]} 68. Rd2 {[%clk 0:00:05]}  Rxh3+ {[%clk 0:00:04]} 69. Kg1 {[%clk 0:00:04]}  Rd3 {[%clk 0:00:05]} 70. Re2 {[%clk 0:00:04]}  Kg3 {[%clk 0:00:05]} 71. Re1 {[%clk 0:00:05]}  Rd2 {[%clk 0:00:05]} 72. Re3+ {[%clk 0:00:05]}  Kf4 {[%clk 0:00:05]} 73. Rh3 {[%clk 0:00:05]}  Rd1+ {[%clk 0:00:06]} 74. Kf2 {[%clk 0:00:05]}  Rd2+ {[%clk 0:00:07]} 75. Kf1 {[%clk 0:00:05]}  Ng4 {[%clk 0:00:04]} 76. Rf3+ {[%clk 0:00:05]}  Ke5 {[%clk 0:00:03]} 77. Kg1 {[%clk 0:00:04]}  Rd1+ {[%clk 0:00:02]} 78. Bf1 {[%clk 0:00:05]}  Kxe4 {[%clk 0:00:02]} 79. Rh3 {[%clk 0:00:04]}  Ne3 {[%clk 0:00:02]} 80. Rh4+ {[%clk 0:00:04]}  Kf3 {[%clk 0:00:03]} 81. Rh3+ {[%clk 0:00:04]}  Kf4 {[%clk 0:00:03]} 82. Kf2 {[%clk 0:00:05]}  Rxf1+ {[%clk 0:00:03]} 83. Ke2 {[%clk 0:00:05]}  Ra1 {[%clk 0:00:04]} 84. Rf3+ {[%clk 0:00:06]}  Kg4 {[%clk 0:00:04]} 85. Rxe3 {[%clk 0:00:06]}  Ra2+ {[%clk 0:00:05]} 86. Kf1 {[%clk 0:00:06]}  Rd2 {[%clk 0:00:05]} 87. Re4+ {[%clk 0:00:06]}  Kf3 {[%clk 0:00:06]} 88. Re1 {[%clk 0:00:06]}  Rh2 {[%clk 0:00:05]} 89. Kg1 {[%clk 0:00:07]}  Rg2+ {[%clk 0:00:06]} 90. Kh1 {[%clk 0:00:07]}  Rd2 {[%clk 0:00:05]} 91. Kg1 {[%clk 0:00:07]}  d5 {[%clk 0:00:06]} 92. Re6 {[%clk 0:00:08]}  Rd1+ {[%clk 0:00:06]} 93. Kh2 {[%clk 0:00:07]}  d4 {[%clk 0:00:07]} 94. Rxh6 {[%clk 0:00:08]}  d3 {[%clk 0:00:08]} 95. Re6 {[%clk 0:00:08]}  Rf1 {[%clk 0:00:06]} 96. Rd6 {[%clk 0:00:07]}  Ke2 {[%clk 0:00:06]} 97. Re6+ {[%clk 0:00:08]}  Kd1 {[%clk 0:00:07]} 98. Rd6 {[%clk 0:00:08]}  d2 {[%clk 0:00:07]} 99. Kg2 {[%clk 0:00:08]}  Rf5 {[%clk 0:00:07]} 0-1

[Event "December 19 Late 2023"]
[Site "https://www.chess.com"]
[Date "2023.12.19"]
[Round "9"]
[White "Lazavik, Denis"]
[Black "Bortnyk, Olexandr"]
[Result "1-0"]
[Board "5"]
[TimeControl "180+1"]
[WhiteFideId "13515110"]
[BlackFideId "14120828"]
[WhiteElo "2556"]
[BlackElo "2731"]
[WhiteTeam "BLR"]
[BlackTeam "UKR"]
[WhiteClock "0:00:08"]
[BlackClock "0:00:00"]

1. d4 {[%clk 0:03:00]}  d6 {[%clk 0:02:53]} 2. Nf3 {[%clk 0:03:00]}  Nf6 {[%clk 0:02:54]} 3. c4 {[%clk 0:03:01]}  g6 {[%clk 0:02:53]} 4. g3 {[%clk 0:03:01]}  Bg7 {[%clk 0:02:53]} 5. Bg2 {[%clk 0:03:02]}  O-O {[%clk 0:02:54]} 6. Nc3 {[%clk 0:03:02]}  Bf5 {[%clk 0:02:44]} 7. Nh4 {[%clk 0:03:01]}  Bc8 {[%clk 0:02:44]} 8. O-O {[%clk 0:03:01]}  Nc6 {[%clk 0:02:38]} 9. Nf3 {[%clk 0:03:01]}  a6 {[%clk 0:02:33]} 10. h3 {[%clk 0:03:00]}  Bd7 {[%clk 0:02:29]} 11. e4 {[%clk 0:02:58]}  e5 {[%clk 0:02:25]} 12. Be3 {[%clk 0:02:58]}  b5 {[%clk 0:02:16]} 13. dxe5 {[%clk 0:02:48]}  Nxe5 {[%clk 0:02:13]} 14. Nxe5 {[%clk 0:02:46]}  dxe5 {[%clk 0:02:14]} 15. Qc2 {[%clk 0:02:46]}  bxc4 {[%clk 0:02:13]} 16. Rfd1 {[%clk 0:02:41]}  Qc8 {[%clk 0:02:13]} 17. Kh2 {[%clk 0:02:40]}  Rb8 {[%clk 0:02:10]} 18. Na4 {[%clk 0:02:29]}  Bxa4 {[%clk 0:01:57]} 19. Qxa4 {[%clk 0:02:30]}  Rxb2 {[%clk 0:01:58]} 20. Qxc4 {[%clk 0:02:25]}  Qb7 {[%clk 0:01:58]} 21. Rac1 {[%clk 0:02:18]}  h5 {[%clk 0:01:44]} 22. Rc2 {[%clk 0:02:03]}  Rb4 {[%clk 0:01:35]} 23. Qxc7 {[%clk 0:02:01]}  Qxc7 {[%clk 0:01:36]} 24. Rxc7 {[%clk 0:02:01]}  Nxe4 {[%clk 0:01:37]} 25. Bxe4 {[%clk 0:01:42]}  Rxe4 {[%clk 0:01:37]} 26. Rdd7 {[%clk 0:01:43]}  h4 {[%clk 0:01:12]} 27. Bc5 {[%clk 0:01:29]}  hxg3+ {[%clk 0:01:11]} 28. Kxg3 {[%clk 0:01:29]}  Rb8 {[%clk 0:00:42]} 29. Rxf7 {[%clk 0:01:27]}  Bh8 {[%clk 0:00:37]} 30. Be3 {[%clk 0:01:08]}  Ra4 {[%clk 0:00:25]} 31. Rfd7 {[%clk 0:01:05]}  Bf6 {[%clk 0:00:24]} 32. Rc6 {[%clk 0:00:51]}  Rf8 {[%clk 0:00:22]} 33. Bc5 {[%clk 0:00:50]}  Rc4 {[%clk 0:00:12]} 34. Rdd6 {[%clk 0:00:33]}  Kh7 {[%clk 0:00:02]} 35. Rc7+ {[%clk 0:00:23]}  Kg8 {[%clk 0:00:03]} 36. Rdd7 {[%clk 0:00:08]}  Re8 {[%clk 0:00:00]} 37. Rc6 {[%clk 0:00:08]} 1-0

[Event "December 19 Late 2023"]
[Site "https://www.chess.com"]
[Date "2023.12.19"]
[Round "9"]
[White "Ivic, Velimir"]
[Black "Duda, Jan-Krzysztof"]
[Result "1-0"]
[Board "6"]
[TimeControl "180+1"]
[WhiteFideId "950122"]
[BlackFideId "1170546"]
[WhiteElo "2542"]
[BlackElo "2775"]
[WhiteTeam "SRB"]
[BlackTeam "POL"]
[WhiteClock "0:00:07"]
[BlackClock "0:00:00"]

1. e4 {[%clk 0:03:00]}  e5 {[%clk 0:03:00]} 2. Nf3 {[%clk 0:03:01]}  Nc6 {[%clk 0:03:01]} 3. Bb5 {[%clk 0:03:01]}  Nf6 {[%clk 0:03:00]} 4. d3 {[%clk 0:03:02]}  Bc5 {[%clk 0:03:00]} 5. Bxc6 {[%clk 0:03:02]}  dxc6 {[%clk 0:03:00]} 6. Nbd2 {[%clk 0:03:02]}  Be6 {[%clk 0:02:53]} 7. O-O {[%clk 0:03:00]}  Bd6 {[%clk 0:02:51]} 8. d4 {[%clk 0:02:55]}  Nd7 {[%clk 0:02:50]} 9. dxe5 {[%clk 0:02:55]}  Nxe5 {[%clk 0:02:51]} 10. Nxe5 {[%clk 0:02:55]}  Bxe5 {[%clk 0:02:51]} 11. f4 {[%clk 0:02:56]}  Bd4+ {[%clk 0:02:50]} 12. Kh1 {[%clk 0:02:56]}  f5 {[%clk 0:02:46]} 13. Qh5+ {[%clk 0:02:56]}  g6 {[%clk 0:02:45]} 14. Qe2 {[%clk 0:02:56]}  O-O {[%clk 0:02:41]} 15. Nf3 {[%clk 0:02:55]}  Bf6 {[%clk 0:02:40]} 16. e5 {[%clk 0:02:55]}  Be7 {[%clk 0:02:41]} 17. Rd1 {[%clk 0:02:53]}  Qe8 {[%clk 0:02:41]} 18. Be3 {[%clk 0:02:53]}  c5 {[%clk 0:02:33]} 19. Bf2 {[%clk 0:02:50]}  Kg7 {[%clk 0:02:12]} 20. Bh4 {[%clk 0:02:49]}  Bxh4 {[%clk 0:02:09]} 21. Nxh4 {[%clk 0:02:50]}  Qc6 {[%clk 0:02:05]} 22. Nf3 {[%clk 0:02:48]}  h6 {[%clk 0:02:05]} 23. Rd2 {[%clk 0:02:42]}  a5 {[%clk 0:02:05]} 24. Qe3 {[%clk 0:02:36]}  b6 {[%clk 0:01:55]} 25. Kg1 {[%clk 0:02:29]}  Rfd8 {[%clk 0:01:34]} 26. Rad1 {[%clk 0:02:17]}  Rxd2 {[%clk 0:01:34]} 27. Qxd2 {[%clk 0:02:18]}  Qe4 {[%clk 0:01:30]} 28. a3 {[%clk 0:02:16]}  Rf8 {[%clk 0:01:27]} 29. Re1 {[%clk 0:02:10]}  Qc4 {[%clk 0:01:26]} 30. Kf2 {[%clk 0:01:57]}  a4 {[%clk 0:01:21]} 31. Kg3 {[%clk 0:01:42]}  Kf7 {[%clk 0:01:16]} 32. Rd1 {[%clk 0:01:41]}  Ke7 {[%clk 0:01:14]} 33. Qd3 {[%clk 0:01:22]}  Qe4 {[%clk 0:01:09]} 34. h4 {[%clk 0:00:47]}  Ra8 {[%clk 0:00:49]} 35. Qd2 {[%clk 0:00:45]}  Qc4 {[%clk 0:00:42]} 36. Qd3 {[%clk 0:00:44]}  Qe4 {[%clk 0:00:40]} 37. Qd2 {[%clk 0:00:43]}  Qc4 {[%clk 0:00:31]} 38. Qd3 {[%clk 0:00:43]}  Qxd3 {[%clk 0:00:31]} 39. Rxd3 {[%clk 0:00:43]}  Ra5 {[%clk 0:00:31]} 40. Rd2 {[%clk 0:00:25]}  Rb5 {[%clk 0:00:31]} 41. c3 {[%clk 0:00:26]}  c6 {[%clk 0:00:27]} 42. Kf2 {[%clk 0:00:21]}  Bd5 {[%clk 0:00:25]} 43. g3 {[%clk 0:00:18]}  Rb3 {[%clk 0:00:19]} 44. Ne1 {[%clk 0:00:05]}  Be4 {[%clk 0:00:17]} 45. Ke3 {[%clk 0:00:06]}  Bd5 {[%clk 0:00:08]} 46. Nd3 {[%clk 0:00:06]}  h5 {[%clk 0:00:08]} 47. Nc1 {[%clk 0:00:06]}  Rb5 {[%clk 0:00:08]} 48. Rc2 {[%clk 0:00:05]}  Be4 {[%clk 0:00:08]} 49. Rd2 {[%clk 0:00:05]}  Bd5 {[%clk 0:00:07]} 50. Rc2 {[%clk 0:00:05]}  Bc4 {[%clk 0:00:07]} 51. Rd2 {[%clk 0:00:05]}  Ra5 {[%clk 0:00:06]} 52. Rd6 {[%clk 0:00:05]}  Bd5 {[%clk 0:00:06]} 53. Rxg6 {[%clk 0:00:05]}  Rb5 {[%clk 0:00:06]} 54. g4 {[%clk 0:00:05]}  hxg4 {[%clk 0:00:04]} 55. h5 {[%clk 0:00:06]}  Rxb2 {[%clk 0:00:04]} 56. Ne2 {[%clk 0:00:06]}  Bc4 {[%clk 0:00:04]} 57. Ng3 {[%clk 0:00:07]}  Rc2 {[%clk 0:00:03]} 58. Nxf5+ {[%clk 0:00:06]}  Kd7 {[%clk 0:00:04]} 59. Nh6 {[%clk 0:00:05]}  Rxc3+ {[%clk 0:00:04]} 60. Kf2 {[%clk 0:00:06]}  Rf3+ {[%clk 0:00:04]} 61. Kg2 {[%clk 0:00:05]}  Rxf4 {[%clk 0:00:05]} 62. Nxg4 {[%clk 0:00:06]}  b5 {[%clk 0:00:05]} 63. h6 {[%clk 0:00:06]}  Bd5+ {[%clk 0:00:05]} 64. Kg3 {[%clk 0:00:05]}  Rf3+ {[%clk 0:00:02]} 65. Kh4 {[%clk 0:00:06]}  Rf1 {[%clk 0:00:02]} 66. h7 {[%clk 0:00:06]}  Rh1+ {[%clk 0:00:02]} 67. Kg5 {[%clk 0:00:07]}  Rxh7 {[%clk 0:00:02]} 68. Nf6+ {[%clk 0:00:07]}  Ke7 {[%clk 0:00:02]} 69. Nxh7 {[%clk 0:00:08]}  b4 {[%clk 0:00:03]} 70. Kf4 {[%clk 0:00:06]}  b3 {[%clk 0:00:02]} 71. Nf6 {[%clk 0:00:03]}  b2 {[%clk 0:00:01]} 72. Nxd5+ {[%clk 0:00:03]}  cxd5 {[%clk 0:00:02]} 73. Rg1 {[%clk 0:00:03]}  c4 {[%clk 0:00:02]} 74. Ke3 {[%clk 0:00:04]}  c3 {[%clk 0:00:03]} 75. Kd3 {[%clk 0:00:04]}  d4 {[%clk 0:00:03]} 76. Re1 {[%clk 0:00:04]}  Ke6 {[%clk 0:00:03]} 77. Kc2 {[%clk 0:00:04]}  Kf7 {[%clk 0:00:02]} 78. Kd3 {[%clk 0:00:04]}  Ke6 {[%clk 0:00:02]} 79. Kc2 {[%clk 0:00:05]}  Kf7 {[%clk 0:00:03]} 80. e6+ {[%clk 0:00:05]}  Ke7 {[%clk 0:00:03]} 81. Kd3 {[%clk 0:00:06]}  Kf8 {[%clk 0:00:01]} 82. e7+ {[%clk 0:00:06]}  Ke8 {[%clk 0:00:00]} 83. Kc2 {[%clk 0:00:07]} 1-0

[Event "December 19 Late 2023"]
[Site "https://www.chess.com"]
[Date "2023.12.19"]
[Round "9"]
[White "Kamsky, Gata"]
[Black "Paravyan, David"]
[Result "1-0"]
[Board "8"]
[TimeControl "180+1"]
[WhiteFideId "2000024"]
[BlackFideId "4194985"]
[WhiteElo "2660"]
[BlackElo "2566"]
[WhiteTeam "USA"]
[BlackTeam "FID"]
[WhiteClock "0:01:35"]
[BlackClock "0:00:01"]

1. d4 {[%clk 0:03:00]}  d5 {[%clk 0:02:59]} 2. Bf4 {[%clk 0:03:00]}  c5 {[%clk 0:02:58]} 3. e3 {[%clk 0:03:00]}  Nc6 {[%clk 0:02:59]} 4. c3 {[%clk 0:03:00]}  Nf6 {[%clk 0:02:59]} 5. Nd2 {[%clk 0:02:59]}  Bf5 {[%clk 0:02:59]} 6. Qb3 {[%clk 0:02:54]}  Qd7 {[%clk 0:02:53]} 7. a4 {[%clk 0:02:54]}  e6 {[%clk 0:02:52]} 8. Ngf3 {[%clk 0:02:54]}  Nh5 {[%clk 0:02:46]} 9. Ne5 {[%clk 0:02:51]}  Nxe5 {[%clk 0:02:45]} 10. Bxe5 {[%clk 0:02:51]}  c4 {[%clk 0:02:45]} 11. Qd1 {[%clk 0:02:47]}  f6 {[%clk 0:02:00]} 12. Bg3 {[%clk 0:02:20]}  Nxg3 {[%clk 0:01:59]} 13. hxg3 {[%clk 0:02:20]}  Qc7 {[%clk 0:01:54]} 14. b3 {[%clk 0:02:12]}  cxb3 {[%clk 0:01:52]} 15. Qxb3 {[%clk 0:02:08]}  Be7 {[%clk 0:01:44]} 16. c4 {[%clk 0:02:06]}  dxc4 {[%clk 0:01:42]} 17. Bxc4 {[%clk 0:02:05]}  Kf7 {[%clk 0:01:02]} 18. e4 {[%clk 0:01:59]}  Bg4 {[%clk 0:01:03]} 19. f3 {[%clk 0:01:59]}  Qxg3+ {[%clk 0:01:03]} 20. Kf1 {[%clk 0:01:59]}  Qf4 {[%clk 0:01:02]} 21. Ke2 {[%clk 0:01:59]}  Rhd8 {[%clk 0:00:53]} 22. Qe3 {[%clk 0:01:57]}  Qg3 {[%clk 0:00:16]} 23. Rag1 {[%clk 0:01:54]}  f5 {[%clk 0:00:16]} 24. fxg4 {[%clk 0:01:48]}  Qxe3+ {[%clk 0:00:16]} 25. Kxe3 {[%clk 0:01:48]}  Bg5+ {[%clk 0:00:16]} 26. Kd3 {[%clk 0:01:43]}  Bxd2 {[%clk 0:00:17]} 27. gxf5 {[%clk 0:01:41]}  Bf4 {[%clk 0:00:03]} 28. Bxe6+ {[%clk 0:01:40]}  Ke7 {[%clk 0:00:04]} 29. Rxh7 {[%clk 0:01:36]}  Be5 {[%clk 0:00:05]} 30. Bd5 {[%clk 0:01:36]}  Bf6 {[%clk 0:00:04]} 31. g4 {[%clk 0:01:36]}  Kd6 {[%clk 0:00:01]} 32. g5 {[%clk 0:01:35]} 1-0

[Event "December 19 Late 2023"]
[Site "https://www.chess.com"]
[Date "2023.12.19"]
[Round "9"]
[White "Caruana, Fabiano"]
[Black "Durarbayli, Vasif"]
[Result "1-0"]
[Board "9"]
[TimeControl "180+1"]
[WhiteFideId "2020009"]
[BlackFideId "13402935"]
[WhiteElo "2815"]
[BlackElo "2551"]
[WhiteTeam "USA"]
[BlackTeam "AZE"]
[WhiteClock "0:00:05"]
[BlackClock "0:00:00"]

1. d4 {[%clk 0:03:00]}  d5 {[%clk 0:02:56]} 2. c4 {[%clk 0:03:00]}  c6 {[%clk 0:02:56]} 3. Nf3 {[%clk 0:03:00]}  Nf6 {[%clk 0:02:57]} 4. Nc3 {[%clk 0:03:00]}  e6 {[%clk 0:02:57]} 5. e3 {[%clk 0:03:00]}  Nbd7 {[%clk 0:02:57]} 6. Be2 {[%clk 0:02:58]}  Bd6 {[%clk 0:02:56]} 7. O-O {[%clk 0:02:58]}  O-O {[%clk 0:02:57]} 8. a4 {[%clk 0:02:58]}  Ne4 {[%clk 0:02:55]} 9. Qc2 {[%clk 0:02:54]}  f5 {[%clk 0:02:55]} 10. a5 {[%clk 0:02:54]}  Rf6 {[%clk 0:02:44]} 11. a6 {[%clk 0:02:51]}  Rh6 {[%clk 0:02:36]} 12. g3 {[%clk 0:02:44]}  g5 {[%clk 0:02:19]} 13. axb7 {[%clk 0:02:41]}  Bxb7 {[%clk 0:02:19]} 14. c5 {[%clk 0:02:41]}  Bc7 {[%clk 0:02:14]} 15. Nxe4 {[%clk 0:02:22]}  fxe4 {[%clk 0:01:47]} 16. Ne1 {[%clk 0:02:22]}  e5 {[%clk 0:01:23]} 17. Ng2 {[%clk 0:01:57]}  Bc8 {[%clk 0:01:16]} 18. f3 {[%clk 0:01:48]}  exf3 {[%clk 0:01:09]} 19. Bxf3 {[%clk 0:01:45]}  e4 {[%clk 0:01:07]} 20. Bg4 {[%clk 0:01:38]}  Nf6 {[%clk 0:01:06]} 21. Bxc8 {[%clk 0:01:38]}  Qxc8 {[%clk 0:01:07]} 22. Qf2 {[%clk 0:00:19]}  Qh3 {[%clk 0:00:32]} 23. Ne1 {[%clk 0:00:19]}  a5 {[%clk 0:00:19]} 24. Qg2 {[%clk 0:00:17]}  Ng4 {[%clk 0:00:19]} 25. Rf5 {[%clk 0:00:13]}  Bd8 {[%clk 0:00:12]} 26. b4 {[%clk 0:00:11]}  Qxh2+ {[%clk 0:00:03]} 27. Qxh2 {[%clk 0:00:11]}  Rxh2 {[%clk 0:00:04]} 28. bxa5 {[%clk 0:00:09]}  Re2 {[%clk 0:00:04]} 29. Ng2 {[%clk 0:00:09]}  Rc2 {[%clk 0:00:03]} 30. a6 {[%clk 0:00:09]}  h6 {[%clk 0:00:01]} 31. Rf1 {[%clk 0:00:07]}  Ra7 {[%clk 0:00:00]} 32. Ra4 {[%clk 0:00:05]} 1-0

[Event "December 19 Late 2023"]
[Site "https://www.chess.com"]
[Date "2023.12.19"]
[Round "9"]
[White "Bortnyk, Mykola"]
[Black "Livaic, Leon"]
[Result "1-0"]
[Board "10"]
[TimeControl "180+1"]
[WhiteFideId "14120836"]
[BlackFideId "14531534"]
[WhiteElo "2592"]
[BlackElo "2541"]
[WhiteTeam "UKR"]
[BlackTeam "CRO"]
[WhiteClock "0:00:56"]
[BlackClock "0:00:13"]

1. e4 {[%clk 0:03:00]}  e6 {[%clk 0:02:59]} 2. d4 {[%clk 0:02:56]}  d5 {[%clk 0:02:59]} 3. Nc3 {[%clk 0:02:57]}  Bb4 {[%clk 0:02:59]} 4. exd5 {[%clk 0:02:55]}  exd5 {[%clk 0:03:00]} 5. Bd3 {[%clk 0:02:55]}  Nc6 {[%clk 0:03:01]} 6. Be3 {[%clk 0:02:54]}  Nge7 {[%clk 0:02:59]} 7. Ne2 {[%clk 0:02:52]}  Bf5 {[%clk 0:02:58]} 8. O-O {[%clk 0:02:50]}  O-O {[%clk 0:02:57]} 9. Nf4 {[%clk 0:02:45]}  Qd7 {[%clk 0:02:48]} 10. h3 {[%clk 0:02:38]}  Bxc3 {[%clk 0:02:41]} 11. bxc3 {[%clk 0:02:38]}  Na5 {[%clk 0:02:41]} 12. Rb1 {[%clk 0:02:34]}  c6 {[%clk 0:02:30]} 13. Re1 {[%clk 0:02:31]}  Rae8 {[%clk 0:02:14]} 14. Qf3 {[%clk 0:02:13]}  Nc4 {[%clk 0:02:06]} 15. Nh5 {[%clk 0:02:06]}  Bg6 {[%clk 0:01:57]} 16. Bg5 {[%clk 0:01:48]}  f6 {[%clk 0:01:31]} 17. Bf4 {[%clk 0:01:42]}  b5 {[%clk 0:01:27]} 18. Ng3 {[%clk 0:01:37]}  Nc8 {[%clk 0:01:10]} 19. h4 {[%clk 0:01:33]}  Rxe1+ {[%clk 0:01:01]} 20. Rxe1 {[%clk 0:01:34]}  Re8 {[%clk 0:01:00]} 21. Ra1 {[%clk 0:01:34]}  N4b6 {[%clk 0:00:51]} 22. h5 {[%clk 0:01:30]}  Bxd3 {[%clk 0:00:51]} 23. cxd3 {[%clk 0:01:31]}  h6 {[%clk 0:00:50]} 24. Rc1 {[%clk 0:01:25]}  Ne7 {[%clk 0:00:44]} 25. Bxh6 {[%clk 0:01:17]}  gxh6 {[%clk 0:00:41]} 26. Qxf6 {[%clk 0:01:18]}  Qg4 {[%clk 0:00:34]} 27. Re1 {[%clk 0:01:08]}  Nbc8 {[%clk 0:00:34]} 28. Nf5 {[%clk 0:00:56]}  Nxf5 {[%clk 0:00:12]} 29. Rxe8+ {[%clk 0:00:56]}  Kh7 {[%clk 0:00:13]} 30. Rh8# {[%clk 0:00:56]} 1-0